[Event "1st Serbian League 2022"]
[Site "Vrnjacka Banja"]
[Date "2022.09.27"]
[Round "8.15"]
[White "Nenezic, Marko"]
[Black "Vucinic, Gojko"]
[Result "1/2-1/2"]
[ECO "D85"]
[WhiteElo "2528"]
[BlackElo "2380"]
[Annotator "TA"]
[PlyCount "117"]
[EventDate "2022.09.20"]
[EventType "team-tourn"]
[EventCountry "SRB"]
[SourceTitle "playchess.com"]
[Source "ChessBase"]
[SourceQuality "1"]
[TimeControl "40/5400+30:1800+30"]

{[%evp 12,117,24,12,23,0,0,0,3,0,39,36,31,41,44,39,33,45,51,30,31,35,30,25,64,48,86,79,101,77,76,72,101,92,142,128,140,162,139,160,166,165,163,165,158,160,174,175,409,420,433,433,338,332,332,331,331,329,304,75,91,50,47,47,80,0,0,0,11,0,0,0,11,15,231,231,231,231,207,186,270,237,241,0,0,0,0,0,0,0,0,0,0,0,0,0,0,0,0,0,0,0,0,0,0,0,0,0]} 1. d4 {[%emt 0:00:24]} Nf6 {[%emt 0:06:19]} 2. c4 {[%emt 0:00:35]} g6 {[%emt 0:00:44]} 3. Nc3 {[%emt 0:00:22]} d5 {[%emt 0:00:03]} 4. cxd5 {[%emt 0:00:20]} Nxd5 {[%emt 0:00:03]} 5. e4 {[%emt 0:00:29]} Nxc3 {[%emt 0:00:03]} 6. bxc3 {[%emt 0:00:06]} Bg7 {[%emt 0:00:03]} 7. Qa4+ {[%emt 0:00:34]} Qd7 {[%emt 0:00:10] D85: Exchange Grünfeld: Unusual White 7th moves and lines with 7 Nf3.} 8. Qa3 $1 {[%emt 0:00:17][%mdl 4] is now more promising than 8.Qb3.} (8. Bb5 $5 {[%cal Rb5d7]} c6 9. Bd3 $14) 8... b6 {[%emt 0:01:45]} 9. Nf3 {[%emt 0:00:47]} c5 {[%emt 0:02:13]} 10. Be3 {[%emt 0:00:36]} Bb7 {[%emt 0:03:54]} 11. d5 {[%emt 0:03:48]} e6 {[%emt 0:00:22]} 12. Rd1 {[%emt 0:01:05] [#]} exd5 $146 {[%emt 0:00:39]} ({Predecessor:} 12... O-O 13. Be2 exd5 14. exd5 c4 15. O-O Na6 16. Bd4 b5 17. Bxg7 Kxg7 18. Nd4 Qxd5 19. Bf3 Qc5 20. Qxc5 Nxc5 21. Bxb7 Nxb7 22. Nxb5 {½-½ (22) Hoffman,A (2389)-Carbone,D (2309) Montevideo 2022}) 13. exd5 {[%emt 0:00:28]} O-O {[%emt 0:01:34]} (13... Bxd5 $2 14. c4 $18) 14. c4 {[%emt 0:02:54]} Qd6 {[%emt 0:11:28][%cal Ob6b5]} 15. Bd3 {[%emt 0:16:39]} Nd7 {[%emt 0:08:03]} 16. O-O {[%emt 0:01:51]} Ne5 {[%emt 0:01:27]} 17. Nxe5 {[%emt 0:02:17]} Qxe5 {[%emt 0:00:04]} 18. Bc2 {[%emt 0:11:15]} f5 {[%emt 0:15:02]} 19. g3 {[%emt 0:13:22] Prevents f4.} Qc3 {[%emt 0:04:55]} 20. Qxc3 {[%emt 0:03:32]} (20. Qa4 {is interesting.} Rfe8 21. Bg5 Bf8 22. Qd7) 20... Bxc3 {[%emt 0:00:06]} 21. Ba4 {[%emt 0:00:38]} Ba6 {[%emt 0:01:37]} 22. Rc1 {[%emt 0:01:16]} Bd4 {[%emt 0:10:08]} (22... Bf6 $142) 23. Bh6 {[%emt 0:03:00]} Rf7 {[%emt 0:01:53]} 24. Rfe1 {[%emt 0:00:54] Threatens to win with d6.} Bg7 {[%emt 0:09:21]} 25. Bf4 {[%emt 0:01:16]} Bf6 {[%emt 0:08:29]} 26. h4 {[%emt 0:05:18]} Rd8 {[%emt 0:02:47]} 27. d6 {[%emt 0:08:18]} Bc8 {[%emt 0:01:20]} 28. Be8 {[%emt 0:04:33][%cal Ba4e8,Be8c6,Bc6d5][%mdl 32]} Rf8 {[%emt 0:00:04]} 29. Bc6 {[%emt 0:00:06]} Bd7 $2 {[%emt 0:01:42]} (29... Rf7 30. Bd5 Kg7 31. Bxf7 Kxf7) 30. Bd5+ $18 {[%emt 0:00:13]} Kh8 {[%emt 0:00:05] [#]} 31. Re7 {[%emt 0:01:48][%mdl 512]} Rfe8 {[%emt 0:01:07]} (31... Bd4 32. Rce1) 32. Rce1 {[%emt 0:03:27]} h6 {[%emt 0:03:59]} 33. Be5 {[%emt 0:11:15]} (33. Bxh6 Bxe7 34. dxe7 Rc8 $16) 33... Bxe5 {[%emt 0:00:38]} 34. R1xe5 {[%emt 0:00:05][%cal Oe7d7] Rxd7! is the strong threat.} Rxe7 {[%emt 0:00:10]} 35. Rxe7 {[%emt 0:00:27][%mdl 4096] Endgame KRB-KRB} (35. dxe7 $18 {is the precise move to win.} Rc8 36. Bf7) 35... a6 {[%emt 0:00:59][%cal Of5f4]} 36. h5 {[%emt 0:01:41]} gxh5 {[%emt 0:01:03]} 37. Kg2 {[%emt 0:00:43]} b5 {[%emt 0:01:02]} 38. Kh3 {[%emt 0:01:35] White has more active pieces.} (38. Kf3 $16) 38... bxc4 $11 {[%emt 0:01:47]} 39. Bxc4 {[%emt 0:00:15]} f4+ {[%emt 0:00:29]} 40. Kh4 {[%emt 0:00:17]} fxg3 {[%emt 0:00:26]} 41. Kxg3 {[%emt 0:30:11]} Ba4 {[%emt 0:19:01]} 42. Re6 {[%emt 0:00:00]} Bb5 $2 {[%emt 0:00:03]} (42... Kg7 $11 {and Black has nothing to worry.}) 43. Bxb5 $18 {[%emt 0:00:00]} ({Don't go for} 43. Rxh6+ $2 Kg7 44. Rxh5 Bxc4 $19) 43... axb5 {[%emt 0:00:04][%cal Ba6b5,Bb5b4][%mdl 32] KR-KR} 44. Kf4 {[%emt 0:00:00] And now Ke5 would win.} ({Weaker is} 44. Rxh6+ Kg7 45. Rxh5 c4 $11) 44... c4 {[%emt 0:01:31]} 45. Ke5 {[%emt 0:00:00][%mdl 1024] White has strong compensation.} ({Not} 45. Rxh6+ Kg7 46. Rxh5 Rxd6 $11) 45... Kg7 {[%emt 0:00:14] [#]} (45... c3 $142 46. Rxh6+ Kg7 47. Rxh5 c2) 46. Kd5 $1 {[%emt 0:00:00]} c3 {[%emt 0:00:19] [#]} 47. Re3 $2 {[%emt 0:00:00]} ({White should play} 47. a3 $1 $18) 47... b4 $11 {[%emt 0:00:17] The position is equal.} 48. Re4 {[%emt 0:00:00]} Ra8 {[%emt 0:02:26]} 49. d7 {[%emt 0:00:00]} Kf7 {[%emt 0:00:03]} 50. Kd6 {[%emt 0:00:00]} Rxa2 {[%emt 0:00:42] Hoping for ...Rd2+.} (50... c2 51. Rf4+ Kg7 52. Rc4 $18) 51. Rf4+ {[%emt 0:00:00]} Kg6 {[%emt 0:00:52]} 52. Rxb4 {[%emt 0:00:00]} Rxf2 {[%emt 0:01:31]} (52... Rd2+ $2 53. Kc7 $18) 53. Rc4 {[%emt 0:00:00]} Rd2+ {[%emt 0:03:13]} 54. Kc7 {[%emt 0:00:00]} Kg5 {[%emt 0:01:16]} 55. d8=Q+ {[%emt 0:00:00]} Rxd8 {[%emt 0:00:04]} 56. Kxd8 {[%emt 0:00:00]} h4 {[%emt 0:00:04]} 57. Ke7 {[%emt 0:00:00]} h3 {[%emt 0:00:03] Strongly threatening ...h2.} 58. Rxc3 {[%emt 0:00:00]} Kg4 {[%emt 0:00:04]} 59. Rc4+ {[%emt 0:00:00] White really could win this.  Weighted Error Value: White=0.17 (very precise) /Black=0.19 (very precise)} 1/2-1/2

[Event "1st Serbian League 2022"]
[Site "Vrnjacka Banja"]
[Date "2022.09.27"]
[Round "8.16"]
[White "Saric, Sinisa"]
[Black "Djukic, Nikola"]
[Result "1-0"]
[ECO "E92"]
[WhiteElo "2372"]
[BlackElo "2536"]
[Annotator "TA"]
[PlyCount "173"]
[EventDate "2022.09.20"]
[EventType "team-tourn"]
[EventCountry "SRB"]
[SourceTitle "playchess.com"]
[Source "ChessBase"]
[SourceQuality "1"]
[TimeControl "40/5400+30:1800+30"]

{[%evp 19,173,39,39,39,40,41,41,21,27,25,19,20,26,21,39,41,33,26,94,32,71,62,60,76,44,43,133,118,157,163,243,47,64,8,68,91,85,66,73,8,16,24,32,19,70,70,70,-20,-20,-25,16,0,134,120,420,437,355,433,395,395,423,338,439,432,450,334,422,212,152,0,431,415,459,420,500,456,470,469,380,307,305,262,306,351,341,0,291,298,210,150,507,424,608,393,2948,2515,2542,2734,2513,2310,2050,959,694,449,905,855,638,583,29971,29972,29941,29969,29971,29974,29975,29976,29967,5273,29975,29976,29976,29975,29975,29976,29976,29977,29977,29978,29977,29976,29976,29974,29975,29974,29969,0,29975,29976,29976,0,29976,29977,29977,29978,29978,29976,29976,29974,29960,29961,29988,29989,29989,29990,29990,29991]} 1. d4 {[%emt 0:00:10]} Nf6 {[%emt 0:00:06]} 2. c4 {[%emt 0:00:06]} g6 {[%emt 0:00:04]} 3. Nc3 {[%emt 0:00:07]} Bg7 {[%emt 0:00:04]} 4. e4 {[%emt 0:00:10]} d6 {[%emt 0:00:06]} 5. Nf3 {[%emt 0:00:10]} O-O {[%emt 0:00:08]} 6. Be2 {[%emt 0:00:10]} e5 {[%emt 0:00:08]} 7. Be3 {[%emt 0:00:11]} Ng4 {[%emt 0:00:13]} 8. Bg5 {[%emt 0:00:08]} f6 {[%emt 0:00:08]} 9. Bh4 {[%emt 0:00:04]} Nc6 {[%emt 0:00:59] 9...Nc6 scores better than 9...g5.} 10. d5 {[%emt 0:05:02]} Ne7 {[%emt 0:00:25]} 11. h3 {[%emt 0:00:08] E92: King's Indian: Classical: 6 Be2 e5: 7 dxe5, 7 Be3 and Petrosian System without 7...Nbd7.} Nh6 {[%emt 0:00:08]} 12. g4 {[%emt 0:00:05]} Nf7 {[%emt 0:05:04]} 13. Qc2 {[%emt 0:04:28] [#] White is slightly better.} c6 $146 {[%emt 0:03:48]} ({Predecessor:} 13... c5 14. O-O-O Bh6+ 15. Kb1 Kg7 16. Rdg1 Bd7 17. Nd1 Rb8 18. Ne3 Ng8 19. Ne1 b5 20. cxb5 {0-1 (31) Kanter,E (2410)-Cheparinov,I (2681) Yerevan 2014}) 14. a4 {[%emt 0:11:30]} Bd7 {[%emt 0:01:11]} 15. Nd2 {[%emt 0:00:46]} a6 {[%emt 0:03:57]} 16. a5 {[%emt 0:09:32]} b6 {[%emt 0:09:10]} 17. axb6 {[%emt 0:03:12]} Qxb6 {[%emt 0:00:13]} 18. O-O {[%emt 0:05:32]} Ng5 {[%emt 0:11:35]} (18... cxd5 $11 {remains equal.} 19. cxd5 (19. Nxd5 Nxd5 20. cxd5 a5 $11) (19. exd5 g5 $11) 19... g5) 19. Kg2 {[%emt 0:05:21]} (19. Na4 $16 Qb4 20. Bxg5 fxg5 21. c5) 19... h6 {[%emt 0:00:20]} 20. f3 {[%emt 0:20:38]} f5 {[%emt 0:02:01]} 21. Bf2 {[%emt 0:00:55]} Qc7 {[%emt 0:06:29]} 22. b4 {[%emt 0:05:23]} fxg4 {[%emt 0:21:14]} (22... cxd5 $1 $14 23. cxd5 Rac8) 23. fxg4 $16 {[%emt 0:00:36]} Rf4 {[%emt 0:00:26]} 24. Be3 {[%emt 0:04:23]} cxd5 {[%emt 0:02:33]} (24... h5 {was necessary.} 25. h4 (25. Bxf4 exf4 26. h4 f3+ 27. Bxf3 Nxf3 $16) 25... Nh7 26. Bxf4 exf4 27. gxh5 (27. Rxf4 Be5 $16) 27... gxh5) 25. Bxf4 $2 {[%emt 0:03:58]} (25. exd5 Nf5 26. Bg1 (26. Bxf4 exf4 27. gxf5 Bxf5 $11) (26. gxf5 Bxf5 27. Qb3 Bxh3+ 28. Kg1 Bxf1 $11) 26... h5 $11) (25. Nxd5 $18 Nxd5 26. exd5) 25... exf4 $14 {[%emt 0:00:10]} 26. exd5 {[%emt 0:00:04]} (26. Rxf4 dxe4 27. Raf1 (27. Ndxe4 Bc6 $11) 27... e3 $11) (26. Nxd5 $14 Nxd5 27. exd5 Bxa1 28. Rxa1) 26... Bxc3 {[%emt 0:09:13]} (26... Nf5 $11 27. gxf5 Bxf5) 27. Qxc3 {[%emt 0:01:00]} Nxd5 {[%emt 0:00:06]} 28. Qd3 {[%emt 0:02:08]} Ne3+ {[%emt 0:00:08]} 29. Kh2 {[%emt 0:02:05] The board is on fire.} (29. Kg1 $1 $16 Kh7 30. Ne4) 29... Nxf1+ {[%emt 0:00:22]} 30. Rxf1 {[%emt 0:00:14]} Kh7 {[%emt 0:09:10] Strongly threatening ...Re8.} 31. Rxf4 {[%emt 0:01:02]} (31. Ne4 $2 Nxe4 32. Qxe4 Re8 $19) 31... Bc6 {[%emt 0:01:45]} (31... d5 $11 32. Qg3 Qd6) 32. Rf6 $36 {[%emt 0:00:58][%csl LRd6,LRg6][%mdl 2048] Black is under pressure.} d5+ {[%emt 0:00:23]} 33. Qg3 {[%emt 0:06:59] White is more active.} ({Better is} 33. Kg1 $14 Rg8 34. h4 (34. cxd5 Bb5 $17) 34... dxc4 35. Qd6 Qa7+ 36. Qc5 Qxc5+ 37. bxc5) 33... Qe7 $1 $11 {[%emt 0:01:07][%csl LRb4,LRe2,LRf6]} 34. Rf2 {[%emt 0:00:42]} Re8 {[%emt 0:05:35]} 35. c5 {[%emt 0:04:56]} Bb7 {[%emt 0:07:35]} (35... Qxe2 36. Rxe2 Rxe2+ 37. Kh1 (37. Kg1 Rxd2 38. Qc7+ Kg8 $11) 37... d4+ 38. Kg1 Rg2+ 39. Qxg2 Bxg2 40. Kxg2 $16) (35... Bb5 $11 {keeps the balance.} 36. Bxb5 axb5) 36. h4 $1 $16 {[%emt 0:02:06]} Ne4 {[%emt 0:00:06][%mdl 8192]} (36... Nf7 $16 {is a better defense.}) 37. Nxe4 $18 {[%emt 0:00:06]} dxe4 {[%emt 0:00:03]} 38. Bc4 {[%emt 0:00:39] And now Rf7+ would win.} Rf8 {[%emt 0:01:17] Against Rf7+} 39. Rxf8 {[%emt 0:00:09]} Qxf8 {[%emt 0:00:04][%mdl 4096] Endgame KQB-KQB} 40. Qc7+ {[%emt 0:02:37]} Kh8 {[%emt 0:00:12]} 41. Qe5+ {[%emt 0:31:20]} ({Inferior is} 41. Qxb7 Qf4+ 42. Kh3 Qf3+ 43. Kh2 Qf4+ 44. Kh3 Qf3+ 45. Kh2 Qf4+ $11) 41... Kh7 {[%emt 0:30:15]} 42. Kg1 {[%emt 0:00:00] Against Qf2+} e3 {[%emt 0:00:00][%csl Ge3][%cal Rf8f2]} 43. Qc7+ {[%emt 0:00:00]} (43. Qxe3 $142 Qd8 44. g5) 43... Kh8 {[%emt 0:00:00][%csl Ge3][%cal Rf8f2]} 44. Qe5+ $2 {[%emt 0:00:00]} (44. Qh2 $1 $16 {[%cal Rh2e5]}) 44... Kh7 $1 {[%emt 0:00:00][%csl Ge3][%cal Rf8f2]} 45. Qxe3 {[%emt 0:00:00]} Qd8 {[%emt 0:00:00]} 46. Qf2 {[%emt 0:00:00]} Qd1+ {[%emt 0:00:00]} 47. Kh2 {[%emt 0:00:00]} Bd5 {[%emt 0:00:00] Prevents Qf7+.} 48. Bxd5 {[%emt 0:00:00]} Qxd5 {[%emt 0:00:00] KQ-KQ} 49. Qc2 {[%emt 0:00:00]} Qe5+ {[%emt 0:00:00]} 50. Kg2 {[%emt 0:00:00]} Qd4 {[%emt 0:00:00]} 51. c6 {[%emt 0:00:00]} Qxg4+ {[%emt 0:00:00] [#]} 52. Kf1 $2 {[%emt 0:00:00]} (52. Kf2 $1 $18) 52... Qf3+ $2 {[%emt 0:00:00][%mdl 8192]} (52... Qxb4 $11 53. Qe2 Qxh4 54. Qxa6 Qf4+ 55. Ke2 Qe4+ 56. Kf2 g5) 53. Ke1 {[%emt 0:00:00]} Qe3+ {[%emt 0:00:00]} 54. Kd1 {[%emt 0:00:03] Hoping for Qc5.} Qg1+ {[%emt 0:00:00]} (54... Qd4+ $16 {is tougher.} 55. Ke2 Qxb4) 55. Ke2 {[%emt 0:01:04] aiming for Qc5.} Qg2+ {[%emt 0:00:00]} (55... Qg4+ $142 56. Kd3 Qxb4) 56. Kd3 {[%emt 0:00:11]} Qd5+ {[%emt 0:00:00]} (56... Qg3+ 57. Kc4 Qxh4+ 58. Kb3 Qg3+ 59. Qc3 Qc7) 57. Ke3 {[%emt 0:00:12] Black must now prevent Qc5.} Qe5+ {[%emt 0:00:00] [#]} 58. Qe4 $1 {[%emt 0:01:42]} Qc3+ {[%emt 0:00:00]} 59. Ke2 {[%emt 0:01:12]} Qb2+ {[%emt 0:00:00]} 60. Kf3 {[%emt 0:03:00]} (60. Kd3 $142 Qb1+ 61. Kd4 Qxb4+ 62. Kd5) 60... Qf6+ {[%emt 0:00:00]} 61. Kg2 {[%emt 0:00:11]} Qb2+ {[%emt 0:01:17]} (61... Kg7 $142 62. Qc4 (62. c7 Qb2+ 63. Kf1 Qc1+ 64. Qe1 Qf4+ 65. Kg2 Qxc7 $15) 62... Qf5) 62. Kh3 {[%emt 0:00:05] h5 is the strong threat.} Qc3+ {[%emt 0:01:53]} 63. Kg4 {[%emt 0:00:44] Threatening mate with Qe7+.} Kg7 {[%emt 0:03:08]} 64. Qe7+ {[%emt 0:00:10]} Kg8 {[%emt 0:00:10]} 65. Qc5 {[%emt 0:02:05]} h5+ {[%emt 0:03:05]} 66. Kg5 {[%emt 0:00:56]} Qg3+ {[%emt 0:00:15]} 67. Kh6 {[%emt 0:01:09]} Qc7 {[%emt 0:02:41]} 68. Kxg6 {[%emt 0:00:32]} (68. Qc4+ $142 Kh8 69. Qe6 Qf4+ 70. Kxg6 Qg3+ 71. Kf7 Kh7 72. Qf5+ Kh6 73. Qg5+ Qxg5 74. hxg5+ Kxg5 75. c7) 68... Qf7+ {[%emt 0:00:55]} 69. Kg5 {[%emt 0:00:25]} Qc7 {[%emt 0:00:44]} 70. Kxh5 {[%emt 0:00:40]} Kf7 {[%emt 0:00:19]} 71. Qf5+ {[%emt 0:00:29]} Kg8 {[%emt 0:00:11]} 72. Qe6+ {[%emt 0:00:24]} Kf8 {[%emt 0:00:09]} 73. Qf6+ {[%emt 0:00:17]} Kg8 {[%emt 0:00:11]} 74. Qg6+ {[%emt 0:01:01]} Kf8 {[%emt 0:00:09]} 75. Qh6+ {[%emt 0:00:16]} Kg8 {[%emt 0:00:07]} 76. Qg5+ {[%emt 0:00:04]} Kf7 {[%emt 0:00:27]} 77. Qf5+ {[%emt 0:00:19]} Kg8 $1 {[%emt 0:00:07]} 78. Qd5+ {[%emt 0:00:18]} Kf8 {[%emt 0:00:17]} 79. Qc5+ {[%emt 0:01:13]} Kf7 $1 {[%emt 0:00:18]} 80. Kg4 {[%emt 0:00:24] White mates.} Qh2 {[%emt 0:01:26]} 81. Qd5+ {[%emt 0:01:21]} Kg7 {[%emt 0:01:19]} 82. Qg5+ {[%emt 0:00:10]} Kh7 {[%emt 0:00:07]} 83. Qf5+ {[%emt 0:00:08]} Kg7 {[%emt 0:00:09]} 84. Kh5 {[%emt 0:00:57]} Kh8 {[%emt 0:00:53]} 85. Qf8+ {[%emt 0:00:31]} Kh7 {[%emt 0:00:06]} 86. Qe7+ {[%emt 0:00:08]} Kg8 {[%emt 0:00:23]} 87. c7 {[%emt 0:00:19] Weighted Error Value: White=0.36/Black=0.55} 1-0

[Event "1st Serbian League 2022"]
[Site "Vrnjacka Banja"]
[Date "2022.09.27"]
[Round "8.17"]
[White "Strikovic, Aleksa"]
[Black "Milosevic, Milos"]
[Result "1-0"]
[ECO "B07"]
[WhiteElo "2491"]
[BlackElo "2379"]
[Annotator "TA"]
[PlyCount "129"]
[EventDate "2022.09.20"]
[EventType "team-tourn"]
[EventCountry "SRB"]
[SourceTitle "playchess.com"]
[Source "ChessBase"]
[SourceQuality "1"]
[TimeControl "40/5400+30:1800+30"]

{[%evp 18,129,33,22,51,39,54,54,52,34,48,35,47,56,71,65,54,43,53,67,95,73,43,34,43,37,81,42,80,100,85,47,52,49,45,8,3,-64,0,-26,-29,-62,-70,-76,-64,-52,-13,-14,-33,-23,0,-11,0,0,0,0,0,0,0,0,0,0,65,18,157,160,148,147,157,151,147,145,152,44,32,0,88,85,192,187,227,218,437,435,425,424,409,415,362,400,370,355,340,203,268,110,106,60,119,31,64,53,85,0,405,385,29989,29990,29991,29992,29992,29993,29995,677]} 1. Nf3 {[%emt 0:00:04] ChessBase II} Nf6 {[%emt 0:00:48]} 2. g3 {[%emt 0:00:39]} g6 {[%emt 0:00:03]} 3. Bg2 {[%emt 0:00:06]} Bg7 {[%emt 0:00:03]} 4. O-O {[%emt 0:00:18]} O-O {[%emt 0:00:06]} 5. d4 {[%emt 0:00:36]} d6 {[%emt 0:00:34]} 6. Nc3 {[%emt 0:00:54]} Nbd7 {[%emt 0:01:21]} 7. e4 {[%emt 0:00:09]} e5 {[%emt 0:00:03]} 8. Re1 {[%emt 0:00:18]} c6 {[%emt 0:01:15]} 9. a4 {[%emt 0:00:18]} a5 {[%emt 0:00:21]} 10. h3 {[%emt 0:00:09]} exd4 {[%emt 0:02:03] B07: Pirc Defence: Miscellaneous Systems.} 11. Nxd4 {[%emt 0:00:07]} (11. Qxd4 Nd5 $1 12. Bg5 Bxd4 $15) 11... Nc5 {[%emt 0:00:20]} 12. Bf4 {[%emt 0:01:44]} Re8 {[%emt 0:02:11] White is slightly better.} 13. Qd2 {[%emt 0:00:32]} Nh5 {[%emt 0:14:39]} 14. Bh6 {[%emt 0:15:05]} Bxh6 {[%emt 0:02:30]} 15. Qxh6 {[%emt 0:00:03]} Qf6 {[%emt 0:00:45]} 16. Rad1 {[%emt 0:02:21]} Be6 {[%emt 0:35:35] [#]} 17. b3 $146 {[%emt 0:06:46]} ({Predecessor:} 17. Qd2 Rad8 18. Re3 Bc8 19. b3 Qe7 20. Rde1 Qc7 21. Rf3 Ng7 22. g4 Qe7 23. Rg3 {1-0 (39) Lerner,K (2520)-Gurevich,M (2420) Yalta 1982 EXT 2022 [ChessBase II]}) 17... Rad8 {[%emt 0:00:16]} 18. Nb1 {[%emt 0:03:18]} Bc8 {[%emt 0:00:59] [#]} 19. Qd2 $1 {[%emt 0:00:56]} Re5 {[%emt 0:04:10]} 20. Nc3 {[%emt 0:03:45]} Re7 {[%emt 0:02:12]} 21. Nf3 {[%emt 0:23:45][%cal Oe4e5]} Rde8 {[%emt 0:01:18][%cal Oc8h3]} 22. Nh2 {[%emt 0:13:56]} Qg7 {[%emt 0:08:38]} 23. Nf1 {[%emt 0:03:34]} Be6 {[%emt 0:09:55]} 24. Ne3 {[%emt 0:04:33]} f5 {[%emt 0:03:01]} 25. exf5 $1 {[%emt 0:07:41]} gxf5 {[%emt 0:00:03]} 26. Bf3 {[%emt 0:01:07]} Nf4 {[%emt 0:00:53]} 27. h4 {[%emt 0:01:58]} (27. Qxd6 Nxh3+ 28. Kg2 Nxf2 29. Kxf2 (29. Qxc5 Nxd1 30. Rxd1 f4 $15) 29... Qxc3 $15) ({White should play} 27. Kh2 $11 Nxh3 28. Kxh3 f4+ 29. Kg2 fxe3 30. Rxe3) 27... d5 {[%emt 0:02:07]} (27... Ng6 $15 28. Qd4 Qxd4 29. Rxd4 f4) 28. Kh2 {[%emt 0:00:39]} (28. Bg2 $5 {[%cal Rg3f4]} Nh5 29. Bf3 $11) 28... Ng6 {[%emt 0:00:10]} 29. Bh5 {[%emt 0:01:02]} f4 {[%emt 0:02:59]} 30. Ng2 {[%emt 0:00:37]} fxg3+ {[%emt 0:00:36]} 31. fxg3 {[%emt 0:00:02]} Bf7 {[%emt 0:02:17]} 32. Rxe7 {[%emt 0:02:58]} Rxe7 {[%emt 0:00:11]} 33. Rf1 {[%emt 0:00:37]} Qe5 {[%emt 0:03:15]} 34. Bd1 {[%emt 0:00:48]} Qg7 {[%emt 0:01:15]} 35. Ne2 {[%emt 0:00:20][%cal Bc3e2,Be2d4,Bd4c6][%mdl 32]} b6 {[%emt 0:00:31]} 36. Nd4 {[%emt 0:00:06]} Ne4 {[%emt 0:00:12]} 37. Qe3 {[%emt 0:01:05]} Nd6 {[%emt 0:00:52]} 38. Qf2 {[%emt 0:03:48]} Ne4 {[%emt 0:00:04]} 39. Qg1 {[%emt 0:01:12] Strongly threatening Nf5.} Qe5 {[%emt 0:00:33]} (39... Nd2 $1 $11 40. Nf5 Nxf1+ 41. Qxf1 Qe5) 40. Nf4 {[%emt 0:00:25]} (40. Qe3 $14 {might be stronger.} Nd6 41. Qf2) 40... Nd2 {[%emt 0:00:52]} (40... Re8 $1 $11) 41. Nxc6 $16 {[%emt 0:30:45]} Nxf1+ {[%emt 0:30:19]} 42. Qxf1 {[%emt 0:00:05]} Qc3 {[%emt 0:00:32]} 43. Nxe7+ {[%emt 0:00:48]} (43. Nxg6 Re1 44. Nge7+ (44. Nce7+ Kg7 $11) 44... Kf8 $11) 43... Nxe7 {[%emt 0:00:03]} 44. Qf2 {[%emt 0:00:00]} Nf5 {[%emt 0:00:00]} 45. Ne2 {[%emt 0:00:00]} ({White should try} 45. Nd3 $16 Nd6 46. Bf3 (46. Qxb6 Qd2+ 47. Kh3 Qxd1 $14) (46. Qf4 Ne4 $16)) 45... Qe5 $14 {[%emt 0:00:00] And now ...Ne3 would win.} 46. Nf4 {[%emt 0:00:00]} Ne3 {[%emt 0:00:00]} (46... Qc3 $1 $11 {keeps the balance.}) 47. Be2 $36 {[%emt 0:00:00][%mdl 2048] White is really pushing.} d4 {[%emt 0:00:00]} (47... Bg6 $16 {might work better.}) 48. Qf3 $18 {[%emt 0:00:00]} Qc5 {[%emt 0:00:00]} 49. Bd3 {[%emt 0:00:00]} Qc3 $2 {[%emt 0:00:00]} (49... Qd6 {is a better defense.} 50. Qe4 Ng4+ 51. Kg1 Nf6) 50. Qa8+ {[%emt 0:00:00]} Kg7 {[%emt 0:00:00]} 51. Qe4 {[%emt 0:00:00]} Ng4+ {[%emt 0:00:00]} 52. Kg1 {[%emt 0:00:00]} Qa1+ {[%emt 0:00:00]} 53. Kg2 {[%emt 0:00:00] Threatening mate with Qe7. Really sharp!} Ne3+ {[%emt 0:00:00]} 54. Kh3 {[%emt 0:00:00]} h5 {[%emt 0:00:00]} 55. Be2 {[%emt 0:01:49]} (55. Qh7+ $142 Kf8 56. Qh8+ Ke7 57. Qe5+ Kf8 58. Qh8+ Ke7 59. Qe5+ Kf8 60. Qh8+) 55... Kg8 {[%emt 0:00:00]} 56. Kh2 {[%emt 0:00:50]} (56. Bxh5 Qf1+ 57. Kh2 Qf2+ 58. Kh3 Qf1+ 59. Kh2 Qf2+ 60. Kh3 Qf1+ $11) (56. Nxh5 Bxh5 57. Qa8+ (57. Bxh5 Qf1+ 58. Kh2 Qf2+ 59. Kh3 Qf1+ 60. Kh2 Qf2+ 61. Kh3 Qf1+ $11) 57... Kh7 $11) (56. Qa8+ $18 {and White stays clearly on top.} Kg7 57. Qb7 (57. Nxh5+ Bxh5 58. Bxh5 Qf1+ 59. Kh2 Qf2+ 60. Kh3 Qf1+ 61. Kh2 Qf2+ 62. Kh3 Qf1+ $11)) 56... Qe1 $16 {[%emt 0:00:00] Threatens to win with ...Ng4+.} 57. Qf3 {[%emt 0:03:33]} (57. Qa8+ $16 Kg7 58. Qb8 (58. Nxh5+ Bxh5 59. Bxh5 Qf2+ 60. Kh3 Qf1+ 61. Kh2 Qf2+ 62. Kh3 Qf1+ 63. Kh2 Qf2+ $11) (58. Bxh5 Nf1+ 59. Kg2 Qxg3+ 60. Kxf1 Qxf4+ 61. Qf3 Qc1+ 62. Qd1 Qf4+ 63. Qf3 Qc1+ 64. Qd1 Qf4+ 65. Qf3 $11)) 57... Ng4+ {[%emt 0:00:00] [#]} (57... Kg7 $1 $14) 58. Kg2 {[%emt 0:00:34]} (58. Kh3 $1 $16) 58... Ne3+ {[%emt 0:00:00]} 59. Kh3 {[%emt 0:00:42] Qa8+ is the strong threat.} Qg1 $1 {[%emt 0:00:00]} 60. Bc4 {[%emt 0:01:06]} (60. Qc6 $16) 60... Bxc4 $4 {[%emt 0:00:11][%mdl 8192]} (60... Nxc4 $11 61. bxc4 Kg7) 61. bxc4 $18 {[%emt 0:00:10]} Ng4 $2 {[%emt 0:00:31]} (61... Qd1 $18 62. Qxd1 Nxd1) 62. Qd5+ {[%emt 0:00:41] White mates.} Kf8 {[%emt 0:01:42]} 63. Qd8+ {[%emt 0:00:02]} Kf7 {[%emt 0:00:19]} 64. Qd7+ {[%emt 0:00:03]} Kf6 {[%emt 0:01:11]} 65. Qe6+ {[%emt 0:00:27] Weighted Error Value: White=0.23 (precise) /Black=0.41} (65. Nxh5+ $142 Kg6 66. Qg7+ Kf5 67. Qf7+ Nf6 68. Qxf6+ Ke4 69. Qf4#) 1-0